bitfinex/quotes_ETHUSD_20250324
["timestamp","ask_amount","ask_price","bid_price","bid_amount"]
[1742825714631,0.7792,2096.3,2096.1,4.77074]
[1742825714833,0.7792,2096.3,2096.2,4.768]
[1742825716651,0.24087792,2096.5,2096.2,4.768]
[1742825716816,6.09,2097.2,2096.5,4.76983]
[1742825717016,0.7522,2097.0,2096.3,4.7702]
[1742825717222,0.7522,2097.0,2096.4,4.776]
[1742825717461,1.05490826,2097.0,2096.4,9.546]
[1742825717837,1.05490826,2097.0,2096.4,9.54591]
[1742825718038,1.05490826,2097.0,2096.4,4.776]
[1742825718567,1.05490826,2097.0,2096.4,9.54605]
[1742825718752,1.05490826,2097.0,2096.4,9.54599]
[1742825718948,1.05490826,2097.0,2096.4,4.776]
[1742825719154,4.05490826,2097.0,2096.4,4.776]
[1742825719327,1.05490826,2097.0,2096.4,4.776]
[1742825719774,1.05490826,2097.0,2095.7,4.77149]
[1742825719775,8.5974,2096.6,2095.7,4.77149]
[1742825719933,0.05,2096.4,2095.7,9.54307]
[1742825720133,0.05,2096.4,2095.8,29.99241]
[1742825720360,0.05,2096.4,2095.9,4.77108]
[1742825720561,0.05,2096.4,2095.8,25.58661079]
[1742825720778,0.05,2096.4,2095.8,25.221]
[1742825720987,0.7801,2096.3,2095.8,25.221]
[1742825721139,0.7801,2096.3,2095.9,9.5742]
[1742825721341,0.7801,2096.3,2095.9,4.803]
[1742825721681,6.8701,2096.3,2095.9,4.803]
[1742825722636,0.8282,2096.2,2096.0,4.8]
[1742825722851,0.8282,2096.2,2096.1,0.93760294]
[1742825724181,3.8282,2096.2,2096.1,5.73460294]
[1742825726361,3.8282,2096.2,2096.1,5.68460294]
[1742825727184,3.8282,2096.2,2096.1,0.88760294]
[1742825727185,15.23163,2096.2,2096.1,0.88760294]
[1742825727503,16.22345,2096.2,2096.1,4.792]
[1742825727795,9.14232,2095.9,2095.8,25.221]
[1742825728000,15.23232,2095.9,2095.8,30.015]
[1742825728159,15.23232,2095.9,2095.8,26.18887284]
[1742825728362,17.26907282,2095.9,2095.8,30.98287284]
[1742825728555,12.49785282,2095.9,2095.8,30.98287284]
[1742825728757,9.9111,2095.9,2095.8,30.98287284]
[1742825729213,10.4611,2095.9,2095.8,30.98287284]
[1742825729853,7.4611,2095.9,2095.8,30.98287284]
[1742825730009,9.9111,2095.9,2095.8,30.98287284]
[1742825730924,15.23232,2095.9,2095.8,30.98287284]
[1742825731108,17.232673,2095.9,2095.8,30.98287284]
[1742825731305,9.14302,2095.6,2095.5,25.217]
[1742825731513,8.59323,2095.5,2095.4,25.217]
[1742825731819,0.8211,2095.3,2095.2,25.217]
[1742825732135,0.8211,2095.3,2095.2,26.18025345]
[1742825732504,9.09,2095.4,2095.2,30.97425345]
[1742825732949,0.8027,2095.3,2095.2,30.97425345]
[1742825733326,4.3527,2095.3,2095.2,30.97425345]
[1742825733531,10.646787,2095.3,2095.2,30.97425345]
[1742825733738,16.736787,2095.3,2095.2,26.18025345]
[1742825733938,3.8299,2094.9,2094.8,25.219]
[1742825734147,3.8299,2094.9,2094.8,4.795]
[1742825734440,3.8299,2094.9,2094.8,5.76303007]
[1742825734441,0.8299,2094.9,2094.8,5.76303007]
[1742825734641,0.7974,2095.1,2094.8,5.76303007]
[1742825734841,3.0,2095.2,2094.8,5.76303007]
[1742825735020,0.7974,2095.5,2094.9,4.77335]
[1742825735223,0.7974,2095.5,2094.8,10.53664007]
[1742825735446,8.56963,2095.5,2094.8,5.76303007]
[1742825735645,8.5696,2095.5,2094.8,5.76303007]
[1742825735848,0.7865,2095.2,2094.9,4.803]
[1742825736357,3.0,2095.0,2094.9,4.803]
[1742825736736,3.0,2095.0,2094.8,0.96803007]
[1742825736933,3.0,2095.0,2094.9,4.803]
[1742825738552,6.09,2095.1,2094.9,4.803]
[1742825738928,0.8026,2094.9,2094.8,0.96803007]
[1742825739129,8.57609,2094.9,2094.8,5.78303007]
[1742825739427,14.66609,2094.9,2094.8,4.815]
[1742825740626,9.8926,2094.9,2094.8,4.815]
[1742825740830,16.3819067,2094.9,2094.8,4.815]
[1742825741025,11.6084167,2094.9,2094.8,4.815]
[1742825741230,16.3819067,2094.9,2094.8,4.815]
[1742825744128,4.77395,2094.7,2094.4,25.225]
[1742825744326,3.55,2094.5,2094.4,25.225]
[1742825744633,8.3244,2094.5,2094.4,30.028]
[1742825744945,0.55,2094.5,2094.4,30.028]
[1742825745146,0.55,2094.5,2094.4,30.96358977]
[1742825745530,3.8122,2094.6,2094.4,30.96358977]
[1742825746337,0.55,2094.3,2093.8,25.23]
[1742825746548,6.09,2094.2,2093.9,4.8]
[1742825747474,9.64,2094.2,2094.1,0.94342777]
[1742825747676,14.41509,2094.2,2094.1,0.94342777]
[1742825747929,0.55,2094.1,2093.8,25.23]
[1742825748201,0.55,2094.1,2093.9,4.796]
[1742825748202,5.606805,2094.1,2093.9,4.796]
[1742825748400,3.55,2094.1,2093.9,4.796]
[1742825748577,3.55,2094.1,2094.0,0.93807499]
[1742825749192,7.77532,2094.1,2094.0,0.93807499]
[1742825749423,0.55,2094.0,2093.8,25.23]
[1742825749627,3.8183,2093.9,2093.8,25.23]
[1742825749785,3.8183,2093.9,2093.8,30.021]
[1742825749979,3.8183,2093.9,2093.8,30.97723622]
[1742825750738,3.8183,2093.9,2093.8,0.95623622]
[1742825751836,3.8183,2093.9,2093.8,5.74823622]
[1742825753819,4.3683,2093.9,2093.8,5.74823622]
[1742825754117,10.1899,2093.9,2093.8,5.73623622]
[1742825754285,5.41413,2093.9,2093.8,5.73623622]
[1742825754482,3.8183,2093.9,2093.8,5.73623622]
[1742825754685,9.09,2093.9,2093.8,5.73623622]
[1742825755217,6.09,2093.9,2093.8,0.95623622]
[1742825755419,9.09,2093.9,2093.8,5.73823622]
[1742825756016,6.09,2093.9,2093.8,5.73823622]
[1742825756922,6.64,2093.9,2093.8,5.73823622]
[1742825757100,10.781546,2093.9,2093.8,5.73823622]
[1742825757719,11.531846,2093.9,2093.8,5.73823622]
[1742825757893,16.307616,2093.9,2093.8,5.73823622]
[1742825758093,16.307616,2093.9,2093.8,5.74823622]
[1742825758714,16.307616,2093.9,2093.8,0.95623622]
[1742825758889,6.1295,2093.8,2093.7,25.233]
[1742825759087,14.71863042,2093.8,2093.7,30.022]
[1742825760723,21.57311864,2093.8,2093.7,30.016]
[1742825761025,17.71863042,2093.8,2093.7,30.016]
[1742825761228,9.8935,2093.8,2093.7,30.016]
[1742825761424,6.09,2093.8,2093.7,30.016]
[1742825762000,14.416,2093.8,2093.7,30.016]
[1742825763444,19.10078822,2093.8,2093.7,30.027]
[1742825763950,9.07931,2093.4,2093.3,25.244]
[1742825764131,3.7524,2093.4,2093.1,25.244]
[1742825764309,3.0,2093.3,2093.1,25.244]
[1742825765232,3.0,2093.3,2093.2,4.794]
[1742825766610,8.58004,2093.3,2093.2,4.794]
[1742825766804,7.77737,2093.2,2093.1,25.244]
[1742825767041,0.8029,2093.0,2092.5,25.246]
[1742825767219,6.09,2093.0,2092.6,4.799]
[1742825767801,7.15174362,2093.0,2092.7,4.803]
[1742825768049,7.77816,2092.9,2092.7,4.803]
[1742825768215,3.0,2092.9,2092.7,4.803]
[1742825770000,3.0,2092.9,2092.5,25.246]
[1742825770204,7.15174362,2093.0,2092.5,25.246]
[1742825770205,6.38464362,2093.0,2092.6,9.57961]
[1742825770524,6.38464362,2093.0,2092.6,4.801]
[1742825771836,6.38464362,2093.0,2092.6,9.57971]
[1742825772040,6.38464362,2093.0,2092.6,4.801]
[1742825773220,0.8078,2092.9,2092.5,25.246]
[1742825773510,11.41837,2092.8,2092.6,4.802]
[1742825773720,14.41851,2092.7,2092.6,4.802]
[1742825773941,14.41851,2092.7,2092.6,4.803]
[1742825774334,9.09,2092.7,2092.6,4.803]
[1742825774718,6.09,2092.7,2092.6,4.803]
[1742825775033,6.64,2092.7,2092.6,4.803]
[1742825775217,9.64,2092.7,2092.6,4.803]
[1742825775524,11.162617,2092.7,2092.6,4.803]
[1742825775931,4.3296,2092.6,2092.5,25.246]
[1742825776136,4.3296,2092.6,2092.5,30.058]
[1742825776647,3.0,2092.6,2092.5,30.058]
[1742825776818,6.09,2092.7,2092.5,30.058]
[1742825777217,6.09,2092.7,2092.5,34.83686]
[1742825777725,0.29464362,2093.0,2092.6,4.77872]
[1742825777920,3.0,2093.1,2092.6,9.55733]
[1742825778121,6.09,2093.2,2092.8,4.77811]
[1742825778321,6.09,2093.2,2092.9,4.81]
[1742825778550,6.09,2093.2,2093.0,4.81]
[1742825778851,6.07870427,2093.4,2093.0,4.81]
[1742825779280,3.0,2093.3,2093.0,4.81]
[1742825779481,3.28348022,2093.3,2093.0,4.81]
[1742825780482,0.28348022,2093.3,2093.2,4.77737]
[1742825780678,6.07870427,2093.4,2093.2,4.77737]
[1742825781581,6.07870427,2093.8,2093.4,4.77689]
[1742825781779,2.63027283,2093.9,2093.5,30.064]
[1742825781960,6.07870427,2094.0,2093.6,25.254]
[1742825782553,6.07870427,2094.0,2093.7,9.5521]
[1742825782753,6.07870427,2094.0,2093.7,9.55208]
[1742825783006,0.7688,2094.5,2093.8,4.77582]
[1742825783007,6.07870427,2094.4,2093.8,4.77582]
[1742825783298,25.254,2095.5,2093.6,25.254]
[1742825783299,6.84870427,2094.7,2094.0,4.77537]
[1742825783452,3.0,2094.6,2094.0,4.77537]
[1742825784065,6.84870427,2094.7,2094.0,4.77537]
[1742825784384,3.0,2094.6,2094.0,4.77536]
[1742825784553,3.0,2094.6,2094.1,4.77523]
[1742825784962,3.0,2094.6,2094.0,4.77536]
[1742825785299,3.0,2094.6,2093.9,4.818]
[1742825785588,6.07870427,2095.0,2094.6,4.77404]
[1742825785755,6.07870427,2095.0,2094.7,30.073]
[1742825785953,11.67069427,2094.9,2094.8,4.822]
[1742825786263,11.67069427,2094.9,2093.8,9.55172]
[1742825786264,3.0,2094.6,2093.8,9.55172]
[1742825786466,3.0596829,2094.6,2093.8,4.77584]
[1742825786672,3.0596829,2094.6,2093.8,9.55175]
[1742825786875,7.77418,2094.6,2093.7,7.7762]
[1742825787054,0.802,2094.5,2093.7,4.7762]
[1742825787261,0.802,2094.5,2093.8,34.84797]
[1742825787652,0.802,2094.5,2093.8,25.244]
[1742825787987,3.0,2094.4,2094.3,0.97017778]
[1742825788289,9.07870427,2094.4,2094.3,5.79417778]
[1742825790363,6.07870427,2094.4,2094.3,5.79417778]
[1742825792901,3.0,2094.5,2094.3,5.79417778]
[1742825793108,3.0,2094.5,2094.3,31.03517778]
[1742825793473,3.0,2094.5,2094.4,4.805]
[1742825794580,6.07870427,2094.6,2094.4,4.805]
[1742825795007,6.91040427,2095.0,2094.4,9.57962]
[1742825795214,5.12915873,2095.2,2094.5,4.7743]
[1742825795215,6.07870427,2095.1,2094.5,4.7743]
[1742825795385,6.07870427,2095.1,2094.4,9.57958]
[1742825795581,6.07870427,2095.1,2094.5,1.79750855]
[1742825795906,6.07870427,2095.1,2094.5,6.57180855]
[1742825796084,3.0,2095.0,2094.5,6.57180855]
[1742825796289,3.0,2095.0,2094.5,1.79750855]
[1742825796489,3.0,2095.0,2094.5,6.57189855]
[1742825797011,3.0,2095.0,2094.6,4.77416]
[1742825797490,3.0,2095.0,2094.5,6.57188855]
[1742825797683,6.07870427,2095.1,2094.6,4.77409]
[1742825797884,6.07870427,2095.3,2095.0,4.77322]
[1742825798084,6.07870427,2095.3,2095.1,4.807]
[1742825798286,6.07870427,2095.5,2095.2,25.239]
[1742825798498,7.75741285,2095.5,2095.2,25.239]
[1742825798681,6.07870427,2095.5,2095.2,25.239]
[1742825798875,3.0,2095.4,2095.2,25.239]
[1742825799684,6.35938144,2095.7,2095.2,25.239]
[1742825799882,6.07870427,2095.7,2095.2,25.239]
[1742825800080,3.0,2095.6,2095.2,25.239]
[1742825800379,6.07870427,2095.7,2095.2,25.239]
[1742825800701,9.07870427,2095.6,2095.2,25.239]
[1742825800876,6.07870427,2095.6,2095.2,25.239]
[1742825801081,6.07870427,2095.6,2095.3,1.2842589]
[1742825801517,3.0,2095.5,2095.3,1.2842589]
[1742825801715,3.0,2095.5,2095.4,4.809]
[1742825802111,3.0,2095.5,2095.4,6.09319761]
[1742825802814,3.0,2095.5,2095.4,1.28419761]
[1742825803015,3.0,2095.5,2095.4,6.08919761]
[1742825803321,16.06414984,2095.5,2095.4,6.09219761]
[1742825803614,16.61414984,2095.5,2095.4,1.28419761]
[1742825803814,8.53334,2095.1,2094.7,25.231]
[1742825803989,3.0,2094.7,2094.6,25.231]
[1742825804196,12.56856666,2094.7,2094.5,25.231]
[1742825804391,7.79450666,2094.7,2094.5,25.231]
[1742825805013,3.0,2095.3,2094.6,9.59618]
[1742825805620,8.13351209,2095.3,2094.6,4.822]
[1742825805917,3.0,2095.1,2094.6,4.822]
[1742825806316,7.77304,2095.1,2094.6,4.822]
[1742825806518,3.0,2094.9,2094.5,25.231]
[1742825806699,3.0,2094.9,2094.7,4.827]
[1742825809419,5.15543875,2095.3,2094.7,4.827]
[1742825809597,3.0,2095.2,2094.7,4.827]
[1742825810404,4.79450666,2095.3,2094.9,4.77337]
[1742825810790,3.0,2095.2,2094.9,4.77337]
[1742825812143,4.79450666,2095.5,2095.1,4.773]
[1742825812294,4.79450666,2095.5,2095.2,4.845]
[1742825812806,4.79450666,2095.5,2094.9,3.0]
[1742825813004,7.79450666,2095.4,2095.0,4.845]
[1742825815461,7.79450666,2095.4,2094.4,3.0]
[1742825815462,0.83026033,2095.3,2095.1,25.228]
[1742825815597,3.0,2095.0,2094.7,25.228]
[1742825815802,7.79450666,2094.9,2094.8,4.841]
[1742825817928,8.34450666,2094.9,2094.8,4.841]
[1742825818135,15.44003056,2094.9,2094.8,4.841]
[1742825818504,10.66654056,2094.9,2094.8,4.841]
[1742825819217,15.44003056,2094.9,2094.8,4.841]
[1742825819424,10.66654056,2094.9,2094.8,4.841]
[1742825819605,8.59030666,2094.9,2094.8,4.841]
[1742825819936,4.79450666,2094.9,2094.8,4.841]
[1742825820116,4.79450666,2094.9,2094.7,25.228]
[1742825820923,3.0,2094.8,2094.7,25.228]
[1742825821127,4.79450666,2094.9,2094.7,25.228]
[1742825821443,4.79450666,2094.9,2094.8,4.829]
[1742825823248,4.79450666,2094.9,2094.7,25.228]
[1742825824305,7.79450666,2094.9,2094.8,4.821]
[1742825824702,4.79450666,2094.9,2094.8,4.821]
[1742825825935,4.79450666,2094.9,2094.7,25.228]
[1742825826250,6.22860533,2094.9,2094.7,25.228]
[1742825826540,4.79450666,2094.9,2094.7,25.228]
[1742825827344,4.79450666,2094.9,2094.8,4.811]
[1742825827637,4.79450666,2094.9,2094.8,25.23]
[1742825827836,4.79450666,2094.9,2094.4,0.97725534]
[1742825828842,0.7635,2094.8,2094.4,0.97725534]
[1742825829155,0.7635,2094.8,2094.5,4.799]
[1742825829509,3.0,2094.8,2094.5,4.799]
[1742825829705,4.79450666,2094.9,2094.6,4.774]
[1742825829909,4.79450666,2095.4,2094.5,4.799]
[1742825830104,4.79450666,2095.4,2094.8,4.77364]
[1742825830333,4.79450666,2095.4,2094.7,7.77392]
[1742825830334,4.79450666,2095.4,2094.9,9.57644]
[1742825830535,3.0,2095.3,2094.9,9.57637]
[1742825831320,3.0,2095.3,2094.9,9.57635]
[1742825831630,4.79450666,2095.4,2095.2,4.77281]
[1742825831809,0.55,2095.8,2095.3,9.57158]
[1742825832213,0.55,2095.8,2095.3,14.34401]
[1742825832433,0.55,2095.8,2095.3,9.57143]
[1742825832609,0.55,2095.8,2095.4,3.0]
[1742825832810,0.55,2095.8,2095.3,4.799]
[1742825833037,0.55,2095.8,2095.4,4.797]
[1742825833829,0.55,2095.8,2095.4,0.94598015]
[1742825833830,3.0,2095.6,2095.4,0.94598015]
[1742825834055,3.0,2095.6,2095.5,4.798]
[1742825835121,4.79450666,2095.7,2095.5,4.798]
[1742825835343,0.55,2095.8,2095.6,4.77176]
[1742825835543,0.55,2095.8,2095.7,4.77167]
[1742825836642,0.55,2095.8,2095.5,12.573]
[1742825836946,0.55,2095.8,2095.5,7.798]
[1742825837307,0.55,2095.8,2095.7,0.96890837]
[1742825839449,0.55,2095.8,2095.7,5.77490837]
[1742825840844,0.55,2095.8,2095.7,5.77290837]
[1742825841565,0.55,2095.8,2095.7,0.96890837]
[1742825841733,0.55,2095.8,2095.6,25.226]
[1742825841734,3.0,2095.7,2095.6,25.226]
[1742825842046,3.0,2095.7,2095.6,30.027]
[1742825842252,5.34450666,2095.8,2095.6,30.027]
[1742825843471,5.34450666,2095.8,2095.6,34.79874]
[1742825843835,0.55,2095.8,2095.6,34.79874]
[1742825844072,0.55,2095.8,2095.6,30.027]
[1742825845318,0.55,2095.8,2095.7,4.77167]
[1742825845949,0.55,2095.8,2095.7,12.54667]
[1742825849028,4.79450666,2096.7,2096.3,4.77028]
[1742825849230,4.79450666,2096.7,2096.4,4.79]
[1742825849465,4.79450666,2096.7,2096.5,25.218]
[1742825850354,3.0,2096.6,2096.5,25.218]
[1742825851782,3.768,2096.5,2096.4,25.215]
[1742825851963,3.768,2096.5,2096.4,30.008]
[1742825854361,5.60590666,2097.0,2096.4,34.77805]
[1742825854548,5.60590666,2097.0,2096.4,30.008]
[1742825854933,3.0,2096.9,2096.4,30.008]
[1742825855260,4.79450666,2097.0,2096.4,30.008]
[1742825855457,5.06817802,2097.0,2096.4,30.008]
[1742825855683,3.0,2096.9,2096.4,30.008]
[1742825855881,9.83693802,2097.0,2096.4,30.008]
[1742825856185,3.0,2096.9,2096.4,30.008]
[1742825856366,3.0,2096.9,2096.6,0.9734154]
[1742825856564,7.76902,2096.9,2096.6,0.9734154]
[1742825856769,3.0,2096.7,2096.4,25.215]
[1742825856969,7.76939,2096.7,2096.5,4.794]
[1742825857268,7.79450666,2096.6,2096.5,4.794]
[1742825857669,12.56412666,2096.6,2096.5,4.794]
[1742825858288,3.7582,2096.5,2096.4,25.212]
[1742825859351,3.7582,2096.5,2096.4,30.006]
[1742825860069,3.7582,2096.5,2096.4,25.212]
[1742825860274,8.55270666,2096.5,2096.4,30.003]
[1742825860663,5.55270666,2096.5,2096.4,30.003]
[1742825860864,10.32255666,2096.5,2096.4,30.003]
[1742825861378,5.55270666,2096.5,2096.4,30.003]
[1742825861871,4.79450666,2096.5,2096.4,30.003]
[1742825864269,7.79450666,2096.5,2096.4,30.003]
[1742825865385,4.79450666,2096.5,2096.4,30.003]
[1742825865556,7.79450666,2096.5,2096.4,30.003]
[1742825866187,4.79450666,2096.9,2096.4,30.003]
[1742825866354,3.0,2096.8,2096.4,30.003]
[1742825866886,3.0,2096.8,2096.4,34.773]
[1742825867050,3.0,2096.8,2096.5,4.76981]
[1742825867664,4.79450666,2097.2,2096.7,4.76931]
[1742825867868,4.79450666,2097.2,2096.8,4.786]
[1742825868593,5.07122595,2097.2,2096.8,4.786]
[1742825868995,3.0,2097.1,2097.0,0.96982603]
[1742825869290,3.0,2097.1,2096.8,4.786]
[1742825869987,3.0,2097.1,2096.9,0.95859089]
[1742825871376,5.07341555,2097.3,2096.9,5.72737089]
[1742825871587,3.0,2097.2,2097.0,4.76871]
[1742825871787,3.0,2097.2,2096.9,5.72735089]
[1742825872360,3.0,2097.2,2096.9,10.49619089]
[1742825872670,3.0,2097.2,2097.1,4.76848]
[1742825872872,3.0,2097.3,2097.2,4.76823]
[1742825873077,3.0,2097.3,2097.2,34.76323]
[1742825873282,0.01,2097.4,2097.3,4.76803]
[1742825874091,0.01,2097.4,2097.2,34.76313]
[1742825874386,0.01,2097.4,2097.3,4.76803]
[1742825874692,0.97306341,2098.7,2097.9,4.76648]
[1742825874693,4.79450666,2098.3,2097.9,4.76648]
[1742825874989,4.79450666,2098.3,2098.0,9.56143]
[1742825875195,4.76288,2099.6,2098.0,9.56143]
[1742825875196,1e-05,2099.4,2099.3,7.76349]
[1742825875507,1.75,2100.0,2099.3,7.76349]
[1742825875508,1.77866058,2100.0,2099.3,28.205]
[1742825875665,1.77866058,2100.0,2099.3,30.165]
[1742825875867,3.0,2099.9,2099.3,30.165]
[1742825876083,7.76232,2099.9,2099.3,30.165]
[1742825876284,4.76232,2099.9,2099.3,30.165]
[1742825876597,6.26205,2100.0,2099.4,4.977]
[1742825876798,4.76246,2099.8,2099.4,4.977]
[1742825876961,4.76246,2099.8,2098.5,4.76526]
[1742825876962,4.7636,2099.3,2099.0,0.92476228]
[1742825877162,0.55,2099.3,2099.1,4.98]
[1742825877467,5.60300666,2099.8,2099.1,4.98]
[1742825877995,0.55,2099.3,2099.1,4.98]
[1742825878365,0.55,2099.4,2099.1,4.98]
[1742825878672,4.76296,2099.6,2099.2,1.01567186]
[1742825878876,7.76316,2099.5,2099.2,1.01567186]
[1742825879081,5.31329,2099.4,2099.2,1.01567186]
[1742825879320,8.31349,2099.3,2099.2,1.01567186]
[1742825879691,3.0,2099.3,2099.2,1.01567186]
[1742825880208,4.79450666,2099.7,2099.2,1.01567186]
[1742825880611,3.0,2099.6,2099.2,1.01567186]
[1742825880920,0.55,2099.4,2099.2,1.01567186]
[1742825881122,5.31335,2099.4,2099.2,1.01567186]
[1742825881293,8.31349,2099.3,2099.2,1.01567186]
[1742825881491,8.31349,2099.3,2099.2,6.00267186]
[1742825881818,13.10799666,2099.3,2099.2,6.00267186]
[1742825882613,8.34450666,2099.3,2099.2,6.00267186]
[1742825882811,7.79450666,2099.3,2099.2,6.00267186]
[1742825883027,0.7994,2099.9,2099.2,6.00267186]
[1742825883215,5.59390666,2099.9,2099.2,10.76620186]
[1742825883415,1.77424616,2100.0,2099.3,3.0]
[1742825883614,1.77424616,2100.0,2099.6,7.76278]
[1742825883615,1.5,2100.0,2099.6,7.76278]
[1742825883932,1.5,2100.0,2099.7,30.172]
[1742825884227,4.5,2100.0,2099.7,30.172]
[1742825884433,1.5,2100.0,2099.7,30.172]
[1742825885405,1.5,2100.0,2099.7,34.93457]
[1742825885707,1.5,2100.0,2099.8,4.76219]
[1742825886140,1.5,2100.0,2099.9,4.76213]
[1742825886301,1.5,2100.0,2099.9,13.88213]
[1742825886506,0.796875,2100.0,2099.9,18.64713]
[1742825886702,0.1230105,2100.7,2100.3,4.76118]
[1742825886907,0.1230105,2100.7,2100.4,9.74999]
[1742825887106,0.1230105,2100.7,2100.4,19.978811]
[1742825887339,0.1230105,2100.7,2100.4,6.12]
[1742825887556,0.1230105,2100.7,2100.4,11.181]
[1742825887706,0.1230105,2100.7,2100.4,5.061]
[1742825887907,3.1230105,2100.7,2100.4,5.061]
[1742825888361,0.1230105,2100.7,2100.4,12.82199]
[1742825888935,0.1230105,2100.7,2100.4,8.061]
[1742825889441,0.1230105,2100.7,2100.4,17.58599]
[1742825889738,0.1230105,2100.7,2100.4,35.33713306]
[1742825889943,0.1230105,2100.7,2100.4,36.61004406]
[1742825890237,0.1230105,2100.7,2100.5,4.76075]
[1742825890424,0.1230105,2100.7,2100.6,57.208723]
[1742825890609,0.1230105,2100.7,2100.6,25.176]
[1742825890810,0.1230105,2100.7,2100.6,26.13443295]
[1742825891657,0.1230105,2100.7,2100.6,35.43909677]
[1742825891936,0.1230105,2100.7,2100.6,31.63589777]
[1742825892532,0.1230105,2100.7,2100.6,36.39643777]
[1742825892838,0.1230105,2100.7,2100.6,70.65408477]
[1742825893055,0.1230105,2100.7,2100.6,73.66788477]
[1742825893351,0.01,2101.4,2101.3,3.0]
[1742825893513,0.01,2101.4,2101.3,8.065]
[1742825893713,0.01,2101.4,2101.3,3.0]
[1742825893919,0.01,2101.4,2101.3,8.064]
[1742825894120,0.005,2101.3,2101.0,3.0]
[1742825894351,0.005,2101.3,2101.1,5.065]
[1742825894738,0.005,2101.3,2101.2,16.166212]
[1742825894957,0.005,2101.3,2101.2,10.882]
[1742825895479,0.005,2101.3,2101.2,11.31246482]
[1742825895634,0.005,2101.3,2101.2,0.43046482]
[1742825896782,0.005,2101.3,2101.1,5.065]
[1742825896994,0.005,2101.3,2101.1,5.90404875]
[1742825897642,0.005,2101.3,2101.1,10.66333875]
[1742825897837,0.005,2101.3,2101.1,5.90404875]
[1742825898684,0.005,2101.3,2101.2,5.12]
[1742825899372,0.005,2101.3,2101.2,9.87918]
[1742825899677,0.005,2101.3,2101.2,5.12]
[1742825899872,0.005,2101.3,2101.2,30.28]
[1742825900674,13.41499766,2101.3,2101.2,25.59046482]
[1742825900874,8.65604766,2101.3,2101.2,30.71746482]
[1742825901080,7.79950666,2101.3,2101.2,30.71746482]
[1742825901274,0.005,2101.3,2101.2,30.71746482]
[1742825901969,0.005,2101.3,2101.2,33.71746482]
[1742825902169,0.005,2101.3,2101.2,25.59046482]
[1742825902346,0.005,2101.3,2101.2,33.73646482]
[1742825902680,0.005,2101.3,2101.2,38.49564482]
[1742825903451,0.005,2101.3,2101.2,44.61564482]
[1742825903652,4.8785705,2102.8,2102.3,3.0]
[1742825903848,0.1230105,2102.8,2102.4,30.434]
[1742825904053,0.1230105,2102.8,2102.5,5.29]
[1742825904746,0.1230105,2102.8,2102.5,5.72046482]
[1742825905183,0.1230105,2102.8,2102.7,3.0]
[1742825905482,0.1230105,2102.8,2102.7,13.07679]
[1742825905788,0.1230105,2102.8,2102.7,8.321]
[1742825906087,0.1230105,2102.8,2102.7,13.07679]
[1742825906259,0.1230105,2102.8,2102.7,8.321]
[1742825906452,0.1230105,2102.8,2102.7,8.75146482]
[1742825906653,0.1230105,2102.8,2102.7,33.78081482]
[1742825906962,0.1230105,2102.8,2102.7,39.08881482]
[1742825907177,1e-05,2103.0,2102.9,4.75533]
[1742825907376,0.01,2103.4,2103.3,7.75443]
[1742825907613,0.01,2103.4,2103.3,28.148]
[1742825907906,0.01,2103.4,2103.3,33.596]
[1742825908105,0.01,2103.4,2103.3,38.78089482]
[1742825908304,0.01,2103.4,2103.3,34.86463594]
[1742825908505,0.01,2103.4,2103.3,31.86463594]
[1742825908709,0.01,2103.4,2103.3,31.88663594]
[1742825909381,8.715986,2103.4,2103.3,1.26863594]
[1742825909551,9.265986,2103.4,2103.3,1.26863594]
[1742825909751,4.7562,2102.6,2102.4,25.142]
[1742825909990,0.8063,2103.2,2102.5,5.502]
[1742825910178,3.0,2102.9,2102.5,5.502]
[1742825910484,3.0,2102.9,2102.6,0.95751513]
[1742825910705,3.01,2103.4,2102.8,3.0]
[1742825910853,3.01,2103.4,2102.6,0.95751513]
[1742825910854,0.01,2103.4,2103.1,3.0]
[1742825911054,0.01,2103.4,2103.1,7.75467]
[1742825911290,0.01,2103.4,2103.3,4.75443]
[1742825911487,0.01,2103.4,2103.3,35.49043]
[1742825911654,0.01,2103.4,2103.3,36.44762645]
[1742825912161,0.7813,2104.6,2103.8,3.0]
[1742825912349,4.75184,2104.5,2103.9,5.603]
[1742825912553,4.75199,2104.4,2103.9,5.603]
[1742825912786,4.75226,2104.3,2103.9,5.603]
[1742825913000,1.028475,2104.5,2103.8,7.75324]
[1742825913154,0.1230105,2104.9,2104.6,3.0]
[1742825913357,0.1230105,2104.9,2103.5,3.0]
[1742825913358,4.75104,2104.8,2104.7,25.135]
[1742825913574,11.87892905,2104.8,2104.0,25.135]
[1742825913776,4.75262,2104.1,2104.0,25.135]
[1742825913981,7.75262,2104.1,2104.0,30.814]
[1742825914188,14.39262,2104.1,2104.0,5.679]
[1742825914408,0.7532,2104.2,2103.4,25.135]
[1742825914688,3.0,2104.0,2103.4,25.135]
[1742825914893,4.75398,2103.5,2103.4,25.135]
[1742825915185,8.53368,2103.5,2103.4,25.135]
[1742825915552,9.08368,2103.5,2103.4,5.7]
[1742825915753,4.75458,2103.3,2103.1,0.95648626]